bitfinex-derivatives/quotes_BNBF0:USTF0_20251219
["timestamp","ask_amount","ask_price","bid_price","bid_amount"]
[1766177828797,1.73359641,861.33,860.0,0.71921281]
[1766177828996,1.73359641,861.33,860.01,0.71921281]
[1766177829191,1.73359641,861.33,860.02,0.71921281]
[1766177829492,1.73359641,861.33,860.03,0.71921281]
[1766177829696,1.73359641,861.33,860.04,0.71921281]
[1766177829890,1.73359641,861.33,860.05,0.71921281]
[1766177830093,1.73359641,861.33,860.06,0.71921281]
[1766177830391,1.73359641,861.33,860.07,0.71921281]
[1766177830592,1.73359641,861.33,860.08,0.71921281]
[1766177830793,1.73359641,861.33,860.09,0.71921281]
[1766177830991,1.73359641,861.33,860.1,0.71921281]
[1766177831191,1.73359641,861.33,860.11,0.71921281]
[1766177831394,1.73359641,861.33,860.12,0.71921281]
[1766177831593,1.73359641,861.3,859.98,9.8780475]
[1766177831896,1.73359641,861.31,859.99,0.7192301]
[1766177832097,1.73359641,861.31,860.0,0.7192301]
[1766177832297,1.73359641,861.31,860.01,0.7192301]
[1766177832493,1.73359641,861.31,860.02,0.7192301]
[1766177832700,1.73359641,861.31,860.03,0.7192301]
[1766177832894,1.73359641,861.31,860.04,0.7192301]
[1766177833094,1.73359641,861.31,860.05,0.7192301]
[1766177833298,1.73359641,861.31,860.06,0.7192301]
[1766177833499,1.73359641,861.31,860.07,0.7192301]
[1766177833797,1.73359641,861.31,860.08,0.7192301]
[1766177833998,1.73359641,861.31,860.09,0.7192301]
[1766177834196,1.73359641,861.31,860.1,0.7192301]
[1766177834397,1.73359641,861.31,860.11,0.7192301]
[1766177834595,1.73359641,861.31,859.98,9.8780475]
[1766177834799,1.73359641,861.31,859.99,0.71956883]
[1766177834997,1.73359641,861.31,860.0,0.71956883]
[1766177835300,1.73359641,861.31,860.01,0.71956883]
[1766177835495,1.73359641,861.31,860.02,0.71956883]
[1766177835698,1.73359641,861.31,860.03,0.71956883]
[1766177835899,1.73359641,861.31,860.04,0.71956883]
[1766177836195,1.73359641,861.31,860.05,0.71956883]
[1766177836400,1.73359641,861.31,860.06,0.71956883]
[1766177836694,1.73359641,861.31,860.07,0.71956883]
[1766177836899,1.73359641,861.31,860.08,0.71956883]
[1766177837093,1.73359641,861.31,860.09,0.71956883]
[1766177837396,1.73359641,861.31,860.1,0.71956883]
[1766177837595,1.73359641,861.31,859.98,9.8780475]
[1766177837795,1.73359641,861.31,859.99,0.71957797]
[1766177837999,1.73359641,861.31,860.0,0.71957797]
[1766177838198,1.73359641,861.31,860.01,0.71957797]
[1766177838396,1.73359641,861.31,860.02,0.71957797]
[1766177838700,1.73359641,861.31,860.03,0.71957797]
[1766177838897,1.73359641,861.31,860.04,0.71957797]
[1766177839096,1.73359641,861.31,860.05,0.71957797]
[1766177839298,1.73359641,861.31,860.06,0.71957797]
[1766177839499,1.73359641,861.25,859.77,0.86030864]
[1766177839695,1.73359641,861.25,859.78,0.71976417]
[1766177839898,1.73359641,861.2,859.79,0.71976417]
[1766177840101,1.73359641,861.2,859.8,0.71976417]
[1766177840295,1.73359641,861.2,859.81,0.71976417]
[1766177840496,1.73359641,861.2,859.82,0.71976417]
[1766177840700,1.73359641,861.2,859.83,0.71976417]
[1766177840902,1.73359641,861.2,859.84,0.71976417]
[1766177841102,1.73359641,861.2,859.85,0.71976417]
[1766177841297,1.73359641,861.2,859.86,0.71976417]
[1766177841501,1.73359641,861.2,859.87,0.71976417]
[1766177841701,1.73359641,861.2,859.72,0.86030864]
[1766177841702,1.73359641,861.2,859.88,0.71976417]
[1766177841903,1.73359641,861.2,859.89,0.71976417]
[1766177842097,1.73359641,861.22,859.9,0.71976417]
[1766177842402,1.73359641,861.23,859.91,0.71976417]
[1766177842600,1.73359641,861.23,859.92,0.71976417]
[1766177842798,1.73359641,861.23,859.93,0.71976417]
[1766177843098,1.73359641,861.23,859.94,0.71976417]
[1766177843298,1.73359641,861.29,859.95,0.71976417]
[1766177843600,1.73359641,861.29,859.96,0.71976417]
[1766177843797,1.73359641,861.29,859.97,0.71976417]
[1766177844003,1.73359641,861.29,859.98,0.71976417]
[1766177844201,1.73359641,861.29,859.99,0.71976417]
[1766177844399,1.73359641,861.29,860.0,0.71976417]
[1766177844603,1.73359641,861.29,860.01,0.71976417]
[1766177844802,1.73359641,861.29,860.02,0.71976417]
[1766177845102,1.73359641,861.29,860.03,0.71976417]
[1766177845299,1.73359641,861.28,860.04,0.71976417]
[1766177845502,1.73359641,861.28,860.05,0.71976417]
[1766177845796,1.73359641,861.28,860.06,0.71976417]
[1766177845997,1.73359641,861.28,860.07,0.71976417]
[1766177846199,1.73359641,861.28,860.08,0.71976417]
[1766177846397,1.73359641,861.28,860.09,0.71976417]
[1766177846601,1.73359641,861.28,860.1,0.71976417]
[1766177846800,1.73359641,861.28,860.11,0.71976417]
[1766177847000,1.73359641,861.28,859.84,0.86030864]
[1766177847201,1.73359641,861.27,859.85,0.72102392]
[1766177847403,1.73359641,861.27,859.86,0.72102392]
[1766177847602,1.73359641,861.27,859.87,0.72102392]
[1766177847800,1.73359641,861.27,859.88,0.72102392]
[1766177847999,1.73359641,861.27,859.89,0.72102392]
[1766177848200,1.73359641,861.26,859.9,0.72102392]
[1766177848500,1.73359641,861.26,859.91,0.72102392]
[1766177848701,1.73359641,861.26,859.92,0.72102392]
[1766177848900,1.73359641,861.26,859.93,0.72102392]
[1766177849103,1.73359641,861.26,859.94,0.72102392]
[1766177849303,1.73359641,861.26,859.95,0.72102392]
[1766177849502,1.73359641,861.26,859.96,0.72102392]
[1766177849701,1.73359641,861.26,859.97,0.72102392]
[1766177850001,1.73359641,861.26,859.98,0.72102392]
[1766177850201,1.73359641,861.25,859.99,0.72102392]
[1766177850405,1.73359641,861.25,860.0,0.72102392]
[1766177850599,1.73359641,861.25,860.01,0.72102392]
[1766177850801,1.73359641,861.25,860.02,0.72102392]
[1766177851102,1.73359641,861.25,860.03,0.72102392]
[1766177851302,1.73359641,861.24,860.04,0.72102392]
[1766177851506,1.73359641,861.24,860.05,0.72102392]
[1766177851805,1.73359641,861.21,860.06,0.72102392]
[1766177852006,1.73359641,861.21,860.07,0.72102392]
[1766177852205,1.73359641,861.2,860.08,0.72102392]
[1766177852406,1.73359641,861.2,860.09,0.72102392]
[1766177852705,1.73359641,861.2,860.1,0.72102392]
[1766177852905,1.73359641,861.2,860.11,0.72102392]
[1766177853105,1.73359641,861.2,860.12,0.72102392]
[1766177853306,1.73359641,861.18,860.13,0.72102392]
[1766177853603,1.73359641,861.18,859.87,0.86030864]
[1766177853604,1.73359641,861.18,860.14,0.72102392]
[1766177853802,1.73359641,861.18,859.87,0.86030864]
[1766177854007,1.73359641,861.18,859.88,0.72109319]
[1766177854203,1.73359641,861.17,859.89,0.72109319]
[1766177854404,1.73359641,861.17,859.9,0.72109319]
[1766177854607,1.73359641,861.17,859.91,0.72109319]
[1766177854904,1.73359641,861.17,859.92,0.72109319]
[1766177855210,1.73359641,861.16,859.93,0.72109319]
[1766177855405,1.73359641,861.16,859.94,0.72109319]
[1766177855704,1.73359641,861.16,859.95,0.72109319]
[1766177855908,1.73359641,861.16,859.96,0.72109319]
[1766177856104,1.73359641,861.16,859.97,0.72109319]
[1766177856405,1.73359641,861.16,859.98,0.72109319]
[1766177856603,1.73359641,861.16,859.99,0.72109319]
[1766177856806,1.73359641,861.16,860.0,0.72109319]
[1766177857005,1.73359641,861.16,860.01,0.72109319]
[1766177857208,1.73359641,861.15,860.02,0.72109319]
[1766177857405,1.73359641,861.15,860.03,0.72109319]
[1766177857609,1.73359641,861.15,860.04,0.72109319]
[1766177857912,1.73359641,861.15,860.05,0.72109319]
[1766177858207,1.73359641,861.15,860.06,0.72109319]
[1766177858408,1.73359641,861.15,860.07,0.72109319]
[1766177858714,1.73359641,861.15,860.08,0.72109319]
[1766177858912,1.73359641,861.15,860.09,0.72109319]
[1766177859110,1.73359641,861.15,860.1,0.72109319]
[1766177859316,1.73359641,861.14,860.11,0.72109319]
[1766177859510,1.73359641,861.14,860.12,0.72109319]
[1766177859708,1.73359641,861.14,860.13,0.72109319]
[1766177859913,1.73359641,861.14,860.14,0.72109319]
[1766177860109,1.73359641,861.14,860.15,0.72109319]
[1766177860314,1.73359641,861.14,860.16,0.72109319]
[1766177860514,1.73359641,861.14,860.17,0.72109319]
[1766177860715,1.73359641,861.14,860.18,0.72109319]
[1766177860912,1.73359641,861.14,860.19,0.72109319]
[1766177861216,1.73359641,861.13,860.2,0.72224513]
[1766177861413,1.73359641,861.13,859.92,0.86030864]
[1766177861712,1.73359641,861.2,859.99,0.86030864]
[1766177861910,1.73359641,861.2,860.0,0.72225026]
[1766177862112,1.73359641,861.2,860.01,0.72225026]
[1766177862416,1.73359641,861.26,860.05,0.86030864]
[1766177862612,1.73359641,861.26,860.06,0.72225026]
[1766177862916,1.73359641,861.26,860.07,0.72225026]
[1766177863116,1.73359641,861.26,860.08,0.72225026]
[1766177863316,1.73359641,861.26,860.09,0.72225026]
[1766177863514,1.73359641,861.26,860.1,0.72225026]
[1766177863714,1.73359641,861.26,860.05,0.86030864]
[1766177863715,1.73359641,861.26,860.11,0.72225026]
[1766177863915,1.73359641,861.26,860.12,0.72225026]
[1766177864217,1.73359641,861.26,860.13,0.72225026]
[1766177864416,1.73359641,861.26,860.14,0.72225026]
[1766177864616,1.73359641,861.26,860.15,0.72225026]
[1766177864815,1.73359641,861.26,860.16,0.72225026]
[1766177865013,1.73359641,861.26,860.17,0.72225026]
[1766177865214,1.73359641,861.25,860.18,0.72225026]
[1766177865418,1.73359641,861.25,860.19,0.72225026]
[1766177865618,1.73359641,861.25,860.2,0.72225026]
[1766177865915,1.73359641,861.25,860.21,0.72225026]
[1766177866116,1.73359641,861.25,860.22,0.72225026]
[1766177866317,1.73359641,861.25,860.23,0.72225026]
[1766177866515,1.73359641,861.25,860.24,0.72225026]
[1766177866817,1.73359641,861.25,860.25,0.72225026]
[1766177867017,1.73359641,861.25,860.26,0.72225026]
[1766177867315,1.73359641,861.25,860.06,0.86030864]
[1766177867316,1.73359641,861.25,860.27,0.72225026]
[1766177867618,1.73359641,861.25,860.28,0.72225026]
[1766177867818,1.73359641,861.25,860.29,0.72225026]
[1766177868118,1.73359641,861.25,860.3,0.72225026]
[1766177868318,1.73359641,861.25,860.31,0.72225026]
[1766177868516,1.73359641,861.25,860.32,0.72225026]
[1766177868713,1.73359641,861.25,860.33,0.72225026]
[1766177868917,1.73359641,861.25,860.06,0.86030864]
[1766177869115,1.73359641,861.25,860.07,0.72239974]
[1766177869314,1.73359641,861.25,860.08,0.72239974]
[1766177869519,1.73359641,861.25,860.09,0.72239974]
[1766177869718,1.73359641,861.25,860.1,0.72239974]
[1766177869915,1.73359641,861.25,860.11,0.72239974]
[1766177870114,1.73359641,861.25,860.12,0.72239974]
[1766177870318,1.73359641,861.25,860.13,0.72239974]
[1766177870518,1.73359641,861.25,860.14,0.72239974]
[1766177870720,1.73359641,861.25,860.15,0.72239974]
[1766177870920,1.73359641,861.25,860.16,0.72239974]
[1766177871215,1.73359641,861.25,860.17,0.72239974]
[1766177871415,1.73359641,861.25,860.18,0.72239974]
[1766177871616,1.73359641,861.25,860.19,0.72239974]
[1766177871815,1.73359641,861.24,860.2,0.72239974]
[1766177872018,1.73359641,861.24,860.21,0.72239974]
[1766177872318,1.73359641,861.24,860.22,0.72239974]
[1766177872517,1.73359641,861.24,860.23,0.72239974]
[1766177872718,1.73359641,861.24,860.24,0.72239974]
[1766177872918,1.73359641,861.24,860.25,0.72239974]
[1766177873117,1.73359641,861.24,860.26,0.72239974]
[1766177873322,1.73359641,861.24,860.27,0.72239974]
[1766177873619,1.73359641,861.24,860.28,0.72239974]
[1766177873821,1.73359641,861.24,860.29,0.72239974]
[1766177874118,1.73359641,861.24,860.3,0.72239974]
[1766177874317,1.73359641,861.24,860.31,0.72239974]
[1766177874523,1.73359641,861.24,860.32,0.72239974]
[1766177874819,1.73359641,861.24,860.05,0.86030864]
[1766177875019,1.73359641,861.24,860.06,0.72213082]
[1766177875222,1.73359641,861.24,860.07,0.72213082]
[1766177875423,1.73359641,861.24,860.08,0.72213082]
[1766177875722,1.73359641,861.24,860.09,0.72213082]
[1766177875919,1.73359641,861.24,860.1,0.72213082]
[1766177876122,1.73359641,861.24,860.11,0.72213082]
[1766177876324,1.73359641,861.24,860.12,0.72213082]
[1766177876621,1.73359641,861.24,860.13,0.72213082]
[1766177876817,1.73359641,861.24,860.14,0.72213082]
[1766177877022,1.73359641,861.24,860.15,0.72213082]
[1766177877222,1.73359641,861.24,860.16,0.72213082]
[1766177877423,1.73359641,861.24,860.17,0.72213082]
[1766177877623,1.73359641,861.24,860.18,0.72213082]
[1766177877823,1.73359641,861.24,860.19,0.72213082]
[1766177878024,1.73359641,861.24,860.2,0.72213082]
[1766177878225,1.73359641,861.24,860.21,0.72213082]
[1766177878528,1.73359641,861.24,860.22,0.72213082]
[1766177878720,1.73359641,861.24,860.23,0.72213082]
[1766177878921,1.73359641,861.24,860.05,0.86030864]
[1766177878922,1.73359641,861.24,860.24,0.72213082]
[1766177879125,1.73359641,861.24,860.25,0.72213082]
[1766177879425,1.73359641,861.24,860.26,0.72213082]
[1766177879624,1.73359641,861.24,860.27,0.72213082]
[1766177879828,1.73359641,861.24,860.28,0.72213082]
[1766177880021,1.73359641,861.24,860.29,0.72213082]
[1766177880325,1.73359641,861.24,860.3,0.72213082]
[1766177880522,1.73359641,861.24,860.31,0.72213082]
[1766177880824,1.73359641,861.24,860.32,0.72213082]
[1766177881024,1.73359641,861.24,860.05,0.86030864]
[1766177881219,1.73359641,861.24,860.06,0.72186199]
[1766177881422,1.73359641,861.24,860.07,0.72186199]
[1766177881625,1.73359641,861.24,860.08,0.72186199]
[1766177881824,1.73359641,861.24,860.09,0.72186199]
[1766177882023,1.73359641,861.24,860.1,0.72186199]
[1766177882225,1.73359641,861.24,860.11,0.72186199]
[1766177882422,1.73359641,861.24,860.12,0.72186199]
[1766177882620,1.73359641,861.24,860.13,0.72186199]
[1766177882826,1.73359641,861.13,860.14,0.72186199]
[1766177883026,1.73359641,861.13,860.15,0.72186199]
[1766177883223,1.73359641,861.13,860.16,0.72186199]
[1766177883420,1.73359641,861.13,860.17,0.72186199]
[1766177883622,1.73359641,861.13,859.93,0.86030864]
[1766177883623,1.73359641,861.13,860.18,0.72186199]
[1766177883826,1.73359641,861.13,860.19,0.72186199]
[1766177884026,1.73359641,861.13,860.2,0.72186199]
[1766177884323,1.73359641,861.13,859.93,0.86030864]
[1766177884523,1.73359641,861.13,859.94,0.72193232]
[1766177884727,1.73359641,861.13,859.95,0.72193232]
[1766177884923,1.73359641,861.13,859.96,0.72193232]
[1766177885123,1.73359641,861.13,859.97,0.72193232]
[1766177885322,1.73359641,861.13,859.98,0.72193232]
[1766177885524,1.73359641,861.13,859.99,0.72193232]
[1766177885729,1.73359641,861.13,860.0,0.72193232]
[1766177885930,1.73359641,861.13,860.01,0.72193232]
[1766177886129,1.73359641,861.13,860.02,0.72193232]
[1766177886328,1.73359641,861.13,860.03,0.72193232]
[1766177886530,1.73359641,861.13,860.04,0.72193232]
[1766177886724,1.73359641,861.13,860.05,0.72193232]
[1766177886926,1.73359641,861.13,860.06,0.72193232]
[1766177887128,1.73359641,861.13,860.07,0.72193232]
[1766177887327,1.73359641,861.13,860.08,0.72193232]
[1766177887529,1.73359641,861.13,860.09,0.72193232]
[1766177887732,1.73359641,861.13,860.1,0.72193232]
[1766177887935,1.73359641,861.13,860.11,0.72193232]
[1766177888236,1.73359641,861.13,860.12,0.72193232]
[1766177888436,1.73359641,861.13,860.13,0.72193232]
[1766177888634,1.73359641,861.13,860.14,0.72193232]
[1766177888934,1.73359641,861.13,860.15,0.72193232]
[1766177889134,1.73359641,861.13,860.16,0.72193232]
[1766177889332,1.73359641,861.13,860.17,0.72193232]
[1766177889530,1.73359641,861.13,860.18,0.72193232]
[1766177889732,1.73359641,861.13,860.19,0.72193232]
[1766177889931,1.73359641,861.13,860.2,0.72193232]
[1766177890134,1.73359641,861.13,859.93,0.86030864]
[1766177890333,1.73359641,861.13,859.94,0.72168615]
[1766177890632,1.73359641,861.13,859.95,0.72168615]
[1766177890836,1.73359641,861.13,859.96,0.72168615]
[1766177891033,1.73359641,861.13,859.97,0.72168615]
[1766177891232,1.73359641,861.13,859.98,0.72168615]
[1766177891435,1.73359641,861.13,859.99,0.72168615]
[1766177891634,1.73359641,861.13,860.0,0.72168615]
[1766177891837,1.73359641,861.11,860.01,0.72168615]
[1766177892134,1.73359641,861.11,860.02,0.72168615]
[1766177892334,1.73359641,861.11,860.03,0.72168615]
[1766177892537,1.73359641,861.11,860.04,0.72168615]
[1766177892833,1.73359641,861.11,860.05,0.72168615]
[1766177893033,1.73359641,861.11,860.06,0.72168615]
[1766177893238,1.73359641,861.11,860.07,0.72168615]
[1766177893438,1.73359641,861.11,860.08,0.72168615]
[1766177893736,1.73359641,861.11,860.09,0.72168615]
[1766177893940,1.73359641,861.11,860.1,0.72168615]
[1766177894239,1.73359641,861.11,860.11,0.72168615]
[1766177894437,1.73359641,861.11,860.12,0.72168615]
[1766177894741,1.73359641,861.11,860.13,0.72168615]
[1766177895040,1.73359641,861.11,859.9,0.86030864]
[1766177895041,1.73359641,861.11,860.14,0.72168615]
[1766177895241,1.73359641,861.11,860.15,0.72168615]
[1766177895442,1.73359641,861.11,860.16,0.72168615]
[1766177895642,1.73359641,861.11,860.17,0.72168615]
[1766177895937,1.73359641,861.11,860.18,0.72168615]
[1766177896140,1.73359641,861.11,859.9,0.86030864]
[1766177896338,1.73359641,861.11,859.91,0.72154856]
[1766177896540,1.73359641,861.11,859.92,0.72154856]
[1766177896741,1.73359641,861.11,859.93,0.72154856]
[1766177897037,1.73359641,861.11,859.94,0.72154856]
[1766177897338,1.73359641,861.11,859.95,0.72154856]
[1766177897539,1.73359641,861.11,859.96,0.72154856]
[1766177897736,1.73359641,861.11,859.97,0.72154856]
[1766177898040,1.73359641,861.11,859.98,0.72154856]
[1766177898340,1.73359641,861.11,859.99,0.72154856]
[1766177898535,1.73359641,861.11,860.0,0.72154856]
[1766177898740,1.73359641,861.11,860.01,0.72154856]
[1766177899037,1.73359641,861.11,860.02,0.72154856]
[1766177899236,1.73359641,861.11,860.03,0.72154856]
[1766177899437,1.73359641,861.11,859.9,0.86030864]
[1766177899438,1.73359641,861.12,860.04,0.72154856]
[1766177899641,1.73359641,861.12,860.05,0.72154856]
[1766177899840,1.73359641,861.12,860.06,0.72154856]
[1766177900041,1.73359641,861.11,860.07,0.72154856]
[1766177900241,1.73359641,861.11,860.08,0.72154856]
[1766177900444,1.73359641,861.11,860.09,0.72154856]
[1766177900641,1.73359641,861.11,860.1,0.72154856]
[1766177900845,1.73359641,861.11,860.11,0.72154856]
[1766177901045,1.73359641,861.11,860.12,0.72154856]
[1766177901240,1.73359641,861.11,860.13,0.72154856]
[1766177901439,1.73359641,861.11,860.14,0.72154856]
[1766177901643,1.73359641,861.11,860.15,0.72154856]
[1766177901843,1.73359641,861.14,860.16,0.72154856]
[1766177902046,1.73359641,861.14,860.17,0.72154856]
[1766177902246,0.20219803,860.9,860.18,0.72154856]
[1766177902541,0.20219803,860.9,860.19,0.72154856]
[1766177902742,0.20219803,860.9,860.2,0.72154856]
[1766177902942,0.20219803,860.9,860.21,0.72154856]
[1766177903141,0.20219803,860.9,860.22,0.72154856]
[1766177903442,0.20219803,860.9,859.94,0.86030864]
[1766177903746,0.20219803,860.9,859.95,0.72165244]
[1766177903945,0.20219803,860.9,859.96,0.72165244]
[1766177904146,0.20219803,860.9,859.97,0.72165244]
[1766177904447,0.20219803,860.9,859.98,0.72165244]
[1766177904745,0.20219803,860.9,859.99,0.72165244]
[1766177904944,0.20219803,860.9,860.0,0.72165244]
[1766177905144,0.20219803,860.9,860.01,0.72165244]
[1766177905342,0.20219803,860.9,860.02,0.72165244]
[1766177905545,0.20219803,860.9,860.03,0.72165244]
[1766177905744,0.20219803,860.9,860.04,0.72165244]
[1766177905942,0.20219803,860.9,860.05,0.72165244]
[1766177906250,0.20219803,860.9,860.06,0.72165244]
[1766177906445,0.20219803,860.9,860.07,0.72165244]
[1766177906646,0.20219803,860.9,860.08,0.72165244]
[1766177906845,0.20219803,860.9,860.09,0.72165244]
[1766177907044,0.20219803,860.9,860.1,0.72165244]
[1766177907244,0.20219803,860.9,860.11,0.72165244]
[1766177907446,0.20219803,860.9,860.12,0.72165244]
[1766177907647,0.20219803,860.9,860.13,0.72165244]
[1766177907845,0.20219803,860.9,860.14,0.72165244]
[1766177908047,0.20219803,860.9,859.87,0.86030864]
[1766177908350,0.20219803,860.9,859.88,0.72130601]
[1766177908551,0.20219803,860.9,859.89,1.58161465]
[1766177908753,0.20219803,860.9,859.9,0.72130601]
[1766177908950,0.20219803,860.9,859.91,0.72130601]
[1766177909151,0.20219803,860.9,859.92,0.72130601]
[1766177909349,0.20219803,860.9,859.93,0.72130601]
[1766177909649,0.20219803,860.9,859.94,0.72130601]
[1766177909852,0.20219803,860.9,859.95,0.72130601]
[1766177910052,0.20219803,860.9,859.96,0.72130601]
[1766177910248,0.20219803,860.9,859.97,0.72130601]
[1766177910553,0.20219803,860.9,859.98,0.72130601]
[1766177910753,0.20219803,860.9,859.99,0.72130601]
[1766177910953,0.20219803,860.9,860.0,0.72130601]
[1766177911154,0.20219803,860.9,860.01,0.72130601]
[1766177911356,0.20219803,860.9,859.73,1.13903193]
[1766177911357,0.20219803,860.9,860.02,0.72130601]
[1766177911555,0.20219803,860.9,860.03,0.72130601]
[1766177911755,0.20219803,860.9,860.04,0.72130601]
[1766177911952,0.20219803,860.9,860.05,0.72130601]
[1766177912255,0.20219803,860.9,860.06,0.72130601]
[1766177912452,0.20219803,860.9,859.88,0.86030864]
[1766177912453,0.20219803,860.9,860.07,0.72130601]
[1766177912656,0.20219803,860.9,860.08,0.72130601]
[1766177912872,0.20219803,860.9,860.09,0.72130601]
[1766177913053,0.20219803,860.9,860.1,0.72130601]
[1766177913253,0.20219803,860.9,860.11,0.72130601]
[1766177913457,0.20219803,860.9,860.12,0.72130601]
[1766177913656,0.20219803,860.9,860.13,0.72130601]
[1766177913859,0.20219803,860.9,860.14,0.72130601]
[1766177914052,0.20219803,860.9,860.15,0.72130601]
[1766177914257,0.20219803,860.9,860.16,0.72130601]
[1766177914454,0.20219803,860.9,859.88,0.86030864]
[1766177914658,0.20219803,860.9,859.89,0.72090373]
[1766177914856,0.20219803,860.9,859.9,0.72090373]
[1766177915060,0.20219803,860.9,859.91,0.72090373]
[1766177915258,0.20219803,860.9,859.92,0.72090373]
[1766177915557,0.20219803,860.9,859.93,0.72090373]
[1766177915757,0.20219803,860.9,859.94,0.72090373]
[1766177915959,0.20219803,860.9,859.95,0.72090373]
[1766177916156,0.20219803,860.9,859.96,0.72090373]
[1766177916355,0.20219803,860.9,859.97,0.72090373]
[1766177916560,0.20219803,860.9,859.98,0.72090373]
[1766177916756,0.20219803,860.9,859.99,0.72090373]
[1766177917062,0.20219803,860.9,860.0,0.72090373]
[1766177917357,0.20219803,860.9,860.01,0.72090373]
[1766177917661,0.20219803,860.9,860.02,0.72090373]
[1766177917958,0.20219803,860.9,860.03,0.72090373]
[1766177918158,0.20219803,860.9,860.04,0.72090373]
[1766177918361,0.20219803,860.9,860.05,0.72090373]
[1766177918558,0.20219803,860.9,860.06,0.72090373]
[1766177918757,0.20219803,860.9,860.07,0.72090373]
[1766177918962,0.20219803,860.9,860.08,0.72090373]
[1766177919162,0.20219803,860.9,860.09,0.72090373]
[1766177919363,0.20219803,860.9,860.1,0.72090373]
[1766177919561,0.20219803,860.9,860.11,0.72090373]
[1766177919861,0.20219803,860.9,860.12,0.72090373]
[1766177920058,0.20219803,860.9,859.84,0.86030864]
[1766177920258,0.20219803,860.9,859.85,0.72089815]
[1766177920561,0.20219803,860.9,859.86,0.72089815]
[1766177920757,0.20219803,860.9,859.87,0.72089815]
[1766177920961,0.20219803,860.9,859.88,0.72089815]
[1766177921159,0.20219803,860.9,859.89,0.72089815]
[1766177921359,0.20219803,860.9,859.9,0.72089815]
[1766177921659,0.20219803,860.9,859.91,0.72089815]
[1766177921857,0.20219803,860.9,859.92,0.72089815]
[1766177922057,0.20219803,860.9,859.93,0.72089815]
[1766177922258,0.20219803,860.9,859.84,0.86030864]
[1766177922259,0.20219803,860.9,859.94,0.72089815]
[1766177922459,0.20219803,860.9,859.95,0.72089815]
[1766177922760,0.20219803,860.9,859.96,0.72089815]
[1766177922958,0.20219803,860.9,859.97,0.72089815]
[1766177923158,0.20219803,860.9,859.98,0.72089815]
[1766177923361,0.20219803,860.9,859.84,0.86030864]
[1766177923362,0.20219803,860.9,859.99,0.72089815]
[1766177923559,0.20219803,860.9,860.0,0.72089815]
[1766177923758,0.20219803,860.9,860.01,0.72089815]
[1766177924059,0.20219803,860.9,860.02,0.72089815]
[1766177924262,0.20219803,860.9,860.03,0.72089815]
[1766177924456,0.20219803,860.9,860.04,0.72089815]
[1766177924661,0.20219803,860.9,860.05,0.72089815]
[1766177924859,0.20219803,860.9,860.06,0.72089815]
[1766177925059,0.20219803,860.9,860.07,0.72089815]
[1766177925258,0.20219803,860.9,860.08,0.72089815]
[1766177925459,0.20219803,860.9,860.09,0.72089815]
[1766177925758,0.20219803,860.9,860.1,0.72089815]
[1766177925961,0.20219803,860.9,860.11,0.72089815]
[1766177926258,0.20219803,860.9,860.12,0.72089815]
[1766177926460,0.20219803,860.9,859.84,0.86030864]
[1766177926662,0.20219803,860.9,859.85,0.72110387]
[1766177926862,0.20219803,860.9,859.86,0.72110387]
[1766177927160,0.20219803,860.9,859.87,0.72110387]
[1766177927360,0.20219803,860.9,859.88,0.72110387]
[1766177927561,0.20219803,860.9,859.84,0.86030864]
[1766177927760,0.20219803,860.9,859.85,0.7211246]
[1766177927959,0.20219803,860.9,859.86,0.7211246]
[1766177928158,0.20219803,860.9,859.87,0.7211246]
[1766177928364,0.20219803,860.9,859.88,0.7211246]
[1766177928566,0.20219803,860.9,859.89,0.7211246]
[1766177928762,0.20219803,860.9,859.9,0.7211246]
[1766177928965,0.20219803,860.9,859.91,0.7211246]
[1766177929159,0.20219803,860.9,859.92,0.7211246]
[1766177929363,0.20219803,860.9,859.93,0.7211246]
[1766177929564,0.20219803,860.9,859.94,0.7211246]
[1766177929864,0.20219803,860.9,859.95,0.7211246]
[1766177930064,0.20219803,860.9,859.96,0.7211246]
[1766177930266,0.20219803,860.9,859.79,0.86030864]
[1766177930267,0.20219803,860.9,859.97,0.7211246]
[1766177930464,0.20219803,860.9,859.98,0.7211246]
[1766177930664,0.20219803,860.9,859.99,0.7211246]
[1766177930861,0.20219803,860.9,860.0,0.7211246]
[1766177931065,0.20219803,860.9,860.01,0.7211246]
[1766177931267,0.20219803,860.9,860.02,0.7211246]
[1766177931461,0.20219803,860.9,860.03,0.7211246]
[1766177931663,0.20219803,860.9,860.04,0.7211246]
[1766177931960,0.20219803,860.9,860.05,0.7211246]
[1766177932162,0.20219803,860.9,860.06,0.7211246]
[1766177932365,0.20219803,860.9,859.79,0.86030864]
[1766177932562,0.20219803,860.9,859.8,0.72147043]
[1766177932762,0.20219803,860.9,859.81,0.72147043]
[1766177932962,0.20219803,860.9,859.82,0.72147043]
[1766177933167,0.20219803,860.9,859.83,0.72147043]
[1766177933364,0.20219803,860.9,859.84,0.72147043]
[1766177933669,0.20219803,860.9,859.85,0.72147043]
[1766177933962,0.20219803,860.9,859.86,0.72147043]
[1766177934165,0.20219803,860.9,859.87,0.72147043]
[1766177934367,0.20219803,860.9,859.88,0.72147043]
[1766177934564,0.20219803,860.9,859.89,0.72147043]
[1766177934767,0.20219803,860.9,859.9,0.72147043]
[1766177934971,0.20219803,860.9,859.91,0.72147043]
[1766177935171,0.20219803,860.9,859.92,0.72147043]